Cogmind - Beta 16.1 @@@ ROGUE MODE // 2026.02.25 @ 18:04:10 Player: MrWaffler Result: Destroyed by Y-45 Defender with Beam Rifle Performance ------------- Evolutions (1) 500 Regions Visited (3) 600 Robots Destroyed (35) 175 Value Destroyed (843) 843 Prototype IDs (2) 40 Alien Tech Used (0) 0 Bonus (118) 118 TOTAL SCORE: 2276 Bonus ------- Follower Combat Kills 118 Cogmind --------- Core Integrity 0/400 Matter 295/300 Energy 52/265 System Corruption 2% Temperature Cool (25) Movement Walking (175) Ox1 Location -9/Storage Parts ------- > --- POWER (1) -------- Improved Ion Engine > --- PROPULSION (2) --- Aluminum Leg Aluminum Leg > --- UTILITY (2) ------ Large Storage Unit > --- WEAPON (4) ------- Particle Gun > --- INVENTORY (15) --- Light Nuclear Core Improved Heat Sink Cooling System Cooling System Disposable Heat Sink Disposable Heat Sink Disposable Heat Sink Terrain Scan Processor Faulty Improved EM Shotgun Assault Rifle Heavy Assault Rifle Heavy Assault Rifle Heavy Assault Rifle Peak State ------------ > --- POWER ------------ Cooled Ion Engine > --- PROPULSION ------- Aluminum Leg Aluminum Leg > --- UTILITY ---------- Large Storage Unit Weight Redist. System > --- WEAPON ----------- Heavy Assault Rifle Heavy Assault Rifle Improved Light Cannon Improved Light Cannon > --- INVENTORY -------- Light Nuclear Core Aluminum Leg Improved Heat Sink Cooling System Cooling System Terrain Scan Processor Assault Rifle Heavy Assault Rifle Heavy Assault Rifle Heavy Assault Rifle [Rating: 18] Favorites ----------- Power Light Ion Engine Engine Light Ion Engine Power Core Light Nuclear Core Propulsion Aluminum Leg Leg Aluminum Leg Wheel Wheel Utility Small Storage Unit Device Seismic Detector Storage Small Storage Unit Weapon Heavy Assault Rifle Energy Gun Particle Gun Ballistic Gun Heavy Assault Rifle Ballistic Cannon Improved Light Cannon Build | -11 -10 -9 -9 ------- Run | Yrd Mat Mat Sto Slots Evolved 2 | . . 2 . Power . | . . . . Propulsion . | . . . . Utility . | . . . . Weapon 2 | . . 2 . Parts Attached 32 | 7 . 14 11 Power 6 | 1 . 2 3 Engine 5 | 1 . 1 3 Core 1 | . . 1 . Reactor . | . . . . Propulsion 10 | 2 . 6 2 Treads . | . . . . Leg 8 | 2 . 4 2 Wheel 2 | . . 2 . Hover . | . . . . Flight . | . . . . Utility 4 | 2 . . 2 Device 2 | 1 . . 1 Storage 2 | 1 . . 1 Processor . | . . . . Hackware . | . . . . Protection . | . . . . Artifact . | . . . . Weapon 12 | 2 . 6 4 Energy Gun 2 | . . . 2 Energy Cannon . | . . . . Ballistic Gun 8 | 2 . 6 . Ballistic Cannon 2 | . . . 2 Launcher . | . . . . Special Weapon . | . . . . Impact Weapon . | . . . . Slashing Weapon . | . . . . Piercing Weapon . | . . . . Special Melee Weapon . | . . . . Unidentified Prototypes 2 | . . . 2 Parts Lost 10 | . . 1 9 Power 1 | . . . 1 Propulsion 2 | . . . 2 Utility 2 | . . 1 1 Weapon 5 | . . . 5 Highest Loss Streak 6 | . . 1 6 To Critical Strikes . | . . . . Average Backups 7 | 2 4 7 9 Power . | . 1 1 1 Propulsion 1 | 1 2 1 . Utility 1 | . . . 3 Weapon 3 | . 1 4 4 Tool/Special . | . . . . Unused Backups 10 | . . 1 9 Power . | . . . . Propulsion . | . . . . Utility 7 | . . . 7 Weapon 3 | . . 1 2 Tool/Special . | . . . . Average Slot Usage (%) 96 | . 100 98 94 Engine 11 | . 14 11 10 Leg 22 | . 28 21 21 Device 10 | . 14 10 10 Storage 11 | . 14 11 11 Ballistic Gun 33 | . 28 43 27 Ballistic Cannon 5 | . . . 11 Peak Build Rating 18 | 7 7 16 18 Average Rating 13 | 5 7 13 16 On Entrance 6 | . 7 7 13 Avg Prop Armor Cover (%) . | . . . . Naked Turns . | . . . . Heaviest Build 42 | 13 13 21 42 Greatest Support 26 | 20 20 20 26 Greatest Overweight (x) 1 | . . 1 1 Average Overweight (x) . | . . . . Largest Inventory Capacity 15 | 8 8 8 15 Average Capacity 10 | 7 8 8 13 Most Carried 14 | 4 4 8 14 Average Carried 7 | 2 4 7 9 Final Capacity 15 | 8 8 8 15 Final Carried 13 | 4 4 8 13 Class Distribution -------------------- 63% | Scavenger-Gunner 17% | Gunner 16% | Mutant Dominant Class ---------------- Mutant | -10/Materials Scavenger-Gunner | -9/Materials Scavenger-Gunner | -9/Storage Resources | -11 -10 -9 -9 ----------- Run | Yrd Mat Mat Sto Matter Collected 1078 | 207 94 385 392 Remotely . | . . . . Salvage Created 1188 | 11 94 597 486 Parts 89 | 5 6 36 42 Haulers Intercepted 3 | . 1 . 2 Recyclers Shooed . | . . . . Parts Field Recycled . | . . . . Retrieved Matter . | . . . . Parts Self-Destructed . | . . . . Prevented . | . . . . Parts Restored . | . . . . Kills | -11 -10 -9 -9 ------- Run | Yrd Mat Mat Sto Combat Hostiles Destroyed 24 | . 3 11 10 Guns 22 | . 3 11 8 Cannons 2 | . . . 2 Classes Destroyed 9 | 1 2 3 3 Worker 3 | . . . 3 Builder 1 | . . . 1 Tunneler 2 | 1 . 1 . Hauler 3 | . 1 . 2 Recycler 1 | . . 1 . Operator 1 | . . . 1 Swarmer 6 | . 3 . 3 Grunt 13 | . . 9 4 Sentry 5 | . . 2 3 Best Kill Streak 6 | 1 3 5 6 Combat Bots Only 4 | . 3 4 3 Max Kills in Single Turn 2 | 1 1 2 2 Gunslinging 1 | . . 1 . Exploded . | . . . . Melee . | . . . . Uniques/NPCs Destroyed . | . . . . Combat | -11 -10 -9 -9 -------- Run | Yrd Mat Mat Sto Hostile Shots Fired 209 | . 16 30 163 Missed 63 | . 4 5 54 Hits 146 | . 12 25 109 Projectile 146 | . 12 25 109 Critical Strikes 2 | . . . 2 Damage Taken 1848 | . 94 330 1424 Core 425 | . 18 45 362 Absorbed by Shields . | . . . . Core Remaining (%) 96 | 100 92 . . Volleys Fired 58 | 1 8 16 33 Largest 4 | 2 2 4 4 Hottest 121 | 40 40 92 121 Shots Fired 204 | 2 16 64 122 Gun 166 | 2 16 64 84 Cannon 38 | . . . 38 Launcher . | . . . . Special . | . . . . Kinetic 196 | 2 16 64 114 Thermal 8 | . . . 8 Explosive . | . . . . Electromagnetic . | . . . . Robot Hit Streak 16 | 1 7 11 16 Robot Miss Streak 5 | . 2 2 5 Penetration Max . | . . . . Secondary Targets 2 | . . 2 . Max Gunslinging Chain 1 | . . 1 . Shots Hit Robots 94 | 1 11 39 43 Core Hits 49 | 1 5 21 22 Critical Kills . | . . . . Critical Parts Destroyed . | . . . . Critical Strikes 1 | . . . 1 Blast 1 | . . . 1 Melee Attacks . | . . . . Impact . | . . . . Slashing . | . . . . Piercing . | . . . . Sneak Attacks . | . . . . Combat Hostiles . | . . . . Follow-up Attacks . | . . . . Damage Inflicted 1603 | 10 153 643 797 Guns 1422 | 10 153 643 616 Cannons 181 | . . . 181 Explosions . | . . . . Melee . | . . . . Ramming . | . . . . Kinetic 1483 | 10 153 643 677 Thermal 120 | . . . 120 Explosive . | . . . . Electromagnetic . | . . . . Impact . | . . . . Slashing . | . . . . Piercing . | . . . . Highest Corruption 2 | . . 2 2 Average Corruption 2 | . . 2 2 Corruption Purged . | . . . . Corruption Blocked . | . . . . Effects 12 | . . 2 10 Message Errors 2 | . . . 2 Matter Fused 4 | . . 1 3 Heat Flow Errors 1 | . . . 1 Energy Discharges 2 | . . 1 1 Data Loss (minor) 1 | . . . 1 Misfires 2 | . . . 2 Overload Shots . | . . . . Overflow Damage . | . . . . Projectiles . | . . . . Explosions . | . . . . Melee . | . . . . Knockbacks 2 | . . . 2 Impact . | . . . . Kinetic 1 | . . . 1 Secondary 1 | . . . 1 Self-Inflicted Damage . | . . . . Shots . | . . . . Rammed . | . . . . Targets Rammed . | . . . . Kicked . | . . . . Crushed . | . . . . Highest Temperature 269 | . . 122 269 Average Temperature 50 | . . 41 53 Received Heat Transfer 687 | . . 171 516 Effects 3 | . . . 3 Interference 3 | . . . 3 Siege Activations . | . . . . Martial Activations . | . . . . Shielding Activations . | . . . . Robots Disrupted . | . . . . Combat Hostiles . | . . . . Robots Corrupted . | . . . . Combat Hostiles . | . . . . Parts Fried . | . . . . Impact Corruptions . | . . . . Robots Melted . | . . . . Combat Hostiles . | . . . . Parts Melted . | . . . . Heat Transferred 296 | . . . 296 Parts Sabotaged . | . . . . Parts Stolen . | . . . . Parts Stripped . | . . . . Power Chain Reactions . | . . . . Alert | -11 -10 -9 -9 ------- Run | Yrd Mat Mat Sto Maximum Alert Level 1 | . . . 1 Low Security (%) 99 | 100 100 100 99 Level 1 . | . . . . Level 2 . | . . . . Level 3 . | . . . . Level 4 . | . . . . Level 5 . | . . . . High Security . | . . . . Max Security . | . . . . Peak Influence 198 | 5 60 177 198 Initial 56 | . . 2 56 Average 63 | . 28 72 71 Influence Increases 907 | 5 77 311 514 Destroy 0b10 Robot/C 560 | . 60 220 280 Destroy 0b10 Robot/NC 55 | 5 5 10 35 Destroy Leader 156 | . 12 60 84 Allied During Kill 35 | . . . 35 Successful Hack 4 | . . 4 . Disable Machine 60 | . . 15 45 Destroy Structure 7 | . . 2 5 Partial Spotted 15 | . . . 15 Lose Combat Pursuer 15 | . . . 15 Influence Decreases 901 | 5 70 183 643 Entered New Map 84 | . . 5 79 Time Decay 537 | 5 70 168 294 Lost Part 100 | . . 10 90 Lost Ally 180 | . . . 180 Squads Dispatched 6 | . 1 3 2 Investigation 2 | . 1 1 . Extermination . | . . . . Reinforcement 4 | . . 2 2 Assault . | . . . . Garrison . | . . . . Intercept . | . . . . Searches Triggered . | . . . . Construction Impeded . | . . . . Haulers Reinforced . | . . . . Active Scanning Responses . | . . . . Cargo Convoy Interrupts . | . . . . Stealth | -11 -10 -9 -9 --------- Run | Yrd Mat Mat Sto Distress Signals 5 | . . 2 3 Communications Jammed . | . . . . Distress Signals . | . . . . Times Spotted 51 | . 7 16 28 Peak Tracking Total 7 | . 4 5 7 Tactical Retreats 1 | . . . 1 Traps | -11 -10 -9 -9 ------- Run | Yrd Mat Mat Sto Traps Triggered 1 | . . 1 . Indirectly . | . . . . Trap Hack Attempts . | . . . . Triggered . | . . . . Disarmed . | . . . . Reprogrammed . | . . . . Reused . | . . . . Traps Extracted . | . . . . Installed . | . . . . Triggered . | . . . . Machines | -11 -10 -9 -9 ---------- Run | Yrd Mat Mat Sto Machines Disabled 4 | . . 1 3 Max in Single Turn 2 | . . 1 2 Machines Repaired . | . . . . Machines Dismantled . | . . . . Machines Sabotaged . | . . . . Overloaded Fab Kills . | . . . . Hacking | -11 -10 -9 -9 --------- Run | Yrd Mat Mat Sto Machines Accessed 7 | . 1 3 3 Terminals 5 | . 1 2 2 Fabricators . | . . . . Repair Stations . | . . . . Recycling Units 1 | . . . 1 Scanalyzers 1 | . . 1 . Garrison Access . | . . . . Total Hacks 24 | . 3 14 7 Successful 9 | . 1 6 2 Failed 15 | . 2 8 5 Catastrophic 5 | . . 3 2 Database Lockouts . | . . . . Manual 10 | . . 7 3 Terminals 15 | . 3 7 5 Fabricators . | . . . . Repair Stations . | . . . . Recycling Units 2 | . . . 2 Scanalyzers 7 | . . 7 . Garrison Access . | . . . . Terminal Hacks 2 | . 1 1 . Robot Analysis 1 | . 1 . . Recall Investigation 1 | . . 1 . Fabricator Hacks . | . . . . Repair Station Hacks . | . . . . Recycling Unit Hacks 2 | . . . 2 Report Inventory 1 | . . . 1 Retrieve Matter 1 | . . . 1 Scanalyzer 5 | . . 5 . Retrieve Study 5 | . . 5 . Garrison Access Hacks . | . . . . Unauthorized Hacks . | . . . . Terminals . | . . . . Fabricators . | . . . . Repair Stations . | . . . . Recycling Units . | . . . . Scanalyzers . | . . . . Garrison Access . | . . . . Data Cores Recovered 1 | . . . 1 Used . | . . . . Hacking Detections 6 | . 1 2 3 Full Trace Events 3 | . 1 1 1 Feedback Events . | . . . . Feedback Blocked . | . . . . Robot Schematics Acquired . | . . . . Robots Built . | . . . . Authchips . | . . . . Time . | . . . . Total Robot Build Rating . | . . . . Part Schematics Acquired . | . . . . Parts Built . | . . . . Authchips . | . . . . Time . | . . . . Total Part Build Rating . | . . . . Part Studies Acquired 5 | . . 5 . Parts Repaired . | . . . . Time . | . . . . Parts Recycled . | . . . . Recycled Matter . | . . . . Retrieved Matter 178 | . . . 178 Retrieved Components . | . . . . Parts Scanalyzed . | . . . . Part Schematics Acquired . | . . . . Parts Damaged . | . . . . Bothacking | -11 -10 -9 -9 ------------ Run | Yrd Mat Mat Sto Used RIF Installer . | . . . . Robots Hacked . | . . . . Non-combat . | . . . . Combat . | . . . . Robot Hacks Applied . | . . . . Relay Couplers Released . | . . . . Fabnet Peak Effective % . | . . . . Robots Rewired . | . . . . Allies Hacked . | . . . . Hacks Repelled . | . . . . Allies | -11 -10 -9 -9 -------- Run | Yrd Mat Mat Sto Total Allies 10 | . . . 10 Largest Group 10 | . . . 10 Highest-Rated Group 88 | . . . 88 Highest-Rated Ally 16 | . . . 16 Total Orders . | . . . . Ally Attacks 41 | . . . 41 Total Damage 371 | . . . 371 Kills 5 | . . . 5 Allies Corrupted . | . . . . Allies Melted . | . . . . Intel | -11 -10 -9 -9 ------- Run | Yrd Mat Mat Sto Active Infowar (turns) 746 | 9 184 553 . Seismic 746 | 9 184 553 . Robot Analysis Total 1 | . 1 . . Derelict Logs Recovered . | . . . . Drone Launches . | . . . . Drone Recoveries . | . . . . Exploration | -11 -10 -9 -9 ------------- Run | Yrd Mat Mat Sto Turns Passed 1554 | 68 184 566 736 Spaces Moved 788 | 43 131 264 350 Core 3 | 3 . . . Treads . | . . . . Legs 785 | 40 131 264 350 Wheels . | . . . . Hover . | . . . . Flight . | . . . . Fastest Speed 50 | 50 120 105 105 Average Speed 153 | 115 120 169 159 Slowest Speed 190 | 120 120 190 175 Overloaded Moves . | . . . . Propulsion Burnouts . | . . . . Robots Hopped . | . . . . Potential Cave-ins . | . . . . Cave-ins Triggered . | . . . . Exploration Rate (%) 31 | 4 34 39 47 Regions Visited 3 Branch Regions 1 Pre-discovered Areas . | . . . . Known Exits Taken . | . . . . Unknown Exits Taken 3 | 1 1 1 . Scrap Searched . | . . . . Spaces Dug . | . . . . Terrain Destroyed 1 | . . . 1 Melee . | . . . . Projectile 1 | . . . 1 AOE . | . . . . Terrain Rammed . | . . . . Walls Destroyed . | . . . . Machines Disabled . | . . . . Actions | -11 -10 -9 -9 --------- Run | Yrd Mat Mat Sto Total 987 | 56 142 344 445 Wait 78 | 2 4 31 41 Move 785 | 42 130 263 350 Hop . | . . . . Pick Up 18 | 4 . 7 7 Fast Attach 13 | 7 . 1 5 Attach 2 | . . 1 1 Detach . | . . . . Swap 20 | . . 14 6 Drop 12 | . . 11 1 Fire 58 | 1 8 16 33 Melee . | . . . . Ram . | . . . . Kick . | . . . . Crush . | . . . . Escape Stasis . | . . . . Rewire 1 | . . . 1 Trap . | . . . . Miscellaneous . | . . . . Route ------- -11/Scrapyard -10/Materials (discovered 2 exits: *Mat / [*Min]) -9/Materials (discovered 2 exits: [*Mat] / *Sto) -9/Storage History --------- Turn | Location | Event 14 | -11/Scrapyard | Discovered new exit (range 16) 69 | -11/Scrapyard | Entered Materials 215 | -10/Materials | Discovered new exit (range 3) 235 | -10/Materials | Discovered new exit (range 14) 253 | -10/Materials | Entered another Materials area 253 | -9/Materials | Evolved 2 slots: Weapon x2 785 | -9/Materials | Discovered new exit (range 13) 816 | -9/Materials | Discovered new exit (range 16) 819 | -9/Materials | Entered Storage 838 | -9/Storage | Build established: Scavenger-Gunner 1488 | -9/Storage | Core integrity fell below 50% 1497 | -9/Storage | Assisted by bots powering up and referring to "LRC-V3" 1522 | -9/Storage | Lost 6 parts (2n4w) 1539 | -9/Storage | Core integrity fell below 20% 1555 | -9/Storage | Destroyed by Y-45 Defender with Beam Rifle Last Messages --------------- 01532_ Cld. Ion Engine destroyed. 01535_ U-05 Engineer destroyed. 01536_ Acquired 5 matter. 01536_ K-01 Serf collects debris. 01537_ Acquired Beam Rifle. 01537_ Trooper 2a destroyed. 01538_ K-01 Serf suffers critical hit (Burn). 01539_ K-01 Serf collects debris. 01540_ A-02 Transporter sends out distress signal. 01541_ Weight Redist. System destroyed. 01542_ K-01 Serf collects debris. 01549_ Acquired 5 matter. 01551_ A-02 Transporter heat short circuits Lgt. Treads. 01552_ A-02 Transporter heat short circuits Weight Redist. System. 01552_ K-01 Serf collects debris. 01553_ Acquired Imp. Ion Engine. 01553_ Beam Rifle destroyed. Map ----- +----------------------------------------------------+ | ????????????????????????????????? | | ????????????????????????????????? | | ????????????????????????????????? | | ????????????????????????????????? | | ????????????????????????????????? | | ????????????????????????????????? | | ????????????????????????????????? | | ????????????????????????????????? | | ????????????????????????????????? | | ????????????????????????????????? | | ????????????????????????????????? | | ????????????????????????????????? | | ????????????????????????????????? | | ???????????????????+##??????????? | | ??????????????????? #????????? | | ??????????????????? #????????? | | ???????######+#???? ##???????? | | ??????? + #???? ????????? | | ???????? # #???? ?????????? | | ???????? # #???# ??????????? | | ????????? # #???# ???????????# | | ?????????*= # #???# #???????????? | | ?######+##+## ##### #???????????? | | ?# ##%%*== gg #???????????? | | ?# *[#!=*%! #???????????? | | ?#[===#!@ !Y #???????????? | | ?#%=!%+%=[!Y ############# | | ?#*=T##=!a=k | | ?######%[[! | | ??????#!########## ############ | | ??????#!#????????# #??????????## | | ??????#=#????????# #???????????? | | ??????# +????????# #???????????? | | ??????#o#????????# #???????????? | | ??????# #????????# #???????????? | | ??????# #????????# #???????????? | | ??????# ?????????# #???????????? | | ??????# ?????????#^ #???????????? | | ??????? ?????????#^ ???????????? | | ??????? ?????????# ???????????? | | ??????? ?????????? ???????????? | | ??????? ?????????? ???????????? | | ??????? ?????????? ???????????? | | ????????????????????????????????? | | ????????????????????????????????# | | ????????????????????????????????# | | ????????????????????????????????# | | ????????????????????????????????# | | ????????????????????????????????# | | ????????????????????????????????# | +----------------------------------------------------+ Best States ------------- Heat Dissipation 28 Energy Generation 14 Energy Capacity 280 Matter Stores 300 Matter Capacity 300 Sight Range 16 Terrain Scan Density 10 Additional Mass Support 6 Evasion (%) 55 Item Schematics ----------------- None Robot Schematics ------------------ None Fabricated ------------ Nothing Repaired ---------- Nothing Studied --------- Assault Rifle | -9/Materials | Hacked Lgt. Assault Rifle | -9/Materials | Hacked Lgt. Ion Engine | -9/Materials | Hacked Hvy. Assault Rifle | -9/Materials | Hacked Aluminum Leg | -9/Materials | Hacked Alien Tech Used ----------------- None Achievements -------------- None Challenges ------------ None Game ------ Seed CoordinationConstructPower Manual? 0 Play Time 00:21:06 Cumulative 51.0 hours Start 2026.02.25 @ 17:38:38 End 2026.02.25 @ 18:04:10 Sessions 1 Manual Loads 0 Difficulty Rogue Special Mode None Game No. 28 Rogue 25 Adventurer 0 Explorer 3 Win Type - Total 0 Types 0/0/0/0/0/0/0/0/0/0 Lore% 12 Gallery% 32 Achievement% 28 Wizard Run 0 Options --------- Layout 1 ASCII 0 Keyboard 0 Movement Mouse Keybinds 0 Fullscreen 2 Font 32/SmallcapsGlow Map View 50x35 Zoom Use 0% Tactical HUD 1 Map Filters NONE Filters NONE Steam 1 RUN: a23a7a34-b3b9-4210-925b-c7c346e306b6